Workbook

Sheet 1
B1: ESCALAS SALARIALES VIGENTES BANCO CENTRAL Y ENTES DESCONCENTRADOS AÑO 2016
B2: ESCALA GERENCIAL GLOBAL
B3: Categoría | C3: Puesto | D3: Salario Único Semanal | E3: Prohibición Semanal | F3: Salario Contratación Semanal | G3: Salario Bisemanal | H3: Salario Mensual
B4: 1 | C4: Subauditor interno | D4: 885905 | E4: 330443 | F4: =+D4+E4 -> 1216348 | G4: =+F4*2 -> 2432696 | H4: =+G4*2.16666666666667 -> 5270841.333
B5: 2 | C5: Auditor interno | D5: 1122147 | E5: 418561 | F5: =+D5+E5 -> 1540708 | G5: =+F5*2 -> 3081416 | H5: =+G5*2.16666666666667 -> 6676401.333
B6: 3 | C6: Subgerente - Intendente | D6: 1181206 | E6: 440590 | F6: =+D6+E6 -> 1621796 | G6: =+F6*2 -> 3243592 | H6: =+G6*2.16666666666667 -> 7027782.667
B7: 4 | C7: Gerente - Superintendente | D7: 1603715 | E7: 598186 | F7: =+D7+E7 -> 2201901 | G7: =+F7*2 -> 4403802 | H7: =+G7*2.16666666666667 -> 9541571
B8: 5 | C8: Presidente | D8: 1696950 | E8: 632962.35 | F8: =+D8+E8 -> 2329912.35 | G8: =+F8*2 -> 4659824.7 | H8: =+G8*2.16666666666667 -> 10096286.85
B9: =+'1CONCARGAS'!B10:L10 -> Montos congelados con base en el artículo 4 del acta de la sesión de la Junta Directiva del BCCR 5676-2015, celebrada el 21 de enero del 2015, mantienen dicha condición con base en el artículo 4 del acta de la sesión 5714-2016, celebrada el 9 de marzo del 2016.
B11: ESCALA REGULAR GLOBAL
B12: Categoría | C12: Puesto | D12: Salario Único Semanal | E12: Prohibición Semanal | F12: Salario Contratación Semanal | G12: Salario Bisemanal | H12: Salario Mensual
B13: 1 | C13: Asistente Servicios Generales 1 | D13: 93647 | E13: 0 | F13: =+SUM(D13:E13) -> 93647 | G13: =+F13*2 -> 187294 | H13: =+G13*2.16666666666667 -> 405803.6667
B14: 2 | C14: Asistente Servicios Generales 2 /Asistente Servicios Institucionales 1 | D14: 114734 | E14: 0 | F14: 114734 | G14: 229468 | H14: 497180.6667
B15: 3 | C15: Asistente Servicios Institucionales 2 | D15: 123977 | E15: 0 | F15: 123977 | G15: 247954 | H15: 537233.6667
B16: 4 | C16: Técnico Servicios Institucionales 1 | D16: 161124 | E16: 0 | F16: 161124 | G16: 322248 | H16: 698204
B17: 5 | C17: Técnico Servicios Institucionales 2 | D17: 173091 | E17: 0 | F17: 173091 | G17: 346182 | H17: 750061
B18: 6 | C18: Profesional Gestión Bancaria (PGB) 1 / Profesional en Enfermería | D18: 245109 | E18: 0 | F18: 245109 | G18: 490218 | H18: 1062139
B19: 7 | C19: Profesional Gestión Informática (PGI) 1 / PGB 2 / Supervisor 1 | D19: 303933 | E19: 0 | F19: 303933 | G19: 607866 | H19: 1317043
B20: 07 AI | C20: Profesional Gestión Auditoría Interna 2 | D20: =+D19 -> 303933 | E20: =+F60*0.65 -> 89161.15 | F20: =+SUM(D20:E20) -> 393094.15 | G20: =+F20*2 -> 786188.3 | H20: =+G20*2.16666666666667 -> 1703407.983
B21: 8 | C21: Supervisor 2 /Supervisor TI /PGB 3 /PGI 2 | D21: 372494 | E21: 0 | F21: 372494 | G21: 744988 | H21: 1614140.667
B22: 08 AI | C22: Profesional Gestión Auditoría Interna 3 | D22: =+D21 -> 372494 | E22: =+F61*0.65 -> 99078.2 | F22: =+SUM(D22:E22) -> 471572.2 | G22: =+F22*2 -> 943144.4 | H22: =+G22*2.16666666666667 -> 2043479.533
B23: 9 | C23: Ejecutivo de área /Supervisor Principal /PGB 4 /PGI 3 | D23: 459618 | E23: 0 | F23: 459618 | G23: 919236 | H23: 1991678
B24: 09 AI | C24: Profesional Gestión Auditoría Interna 4 | D24: =+D23 -> 459618 | E24: =+F62*0.65 -> 123397.95 | F24: =+SUM(D24:E24) -> 583015.95 | G24: =+F24*2 -> 1166031.9 | H24: =+G24*2.16666666666667 -> 2526402.45
B25: 10 | C25: Director de Departamento /Líder de Supervisión /Director de Despacho /Analista Experto | D25: 771089 | E25: 0 | F25: 771089 | G25: 1542178 | H25: 3341385.667
B26: 10 AI | C26: Director de Departamento con prohibición | D26: =+D25 -> 771089 | E26: =+F63*0.65 -> 175507.8 | F26: =+SUM(D26:E26) -> 946596.8 | G26: =+F26*2 -> 1893193.6 | H26: =+G26*2.16666666666667 -> 4101919.467
B27: 11 | C27: Profesional Gestión Bancaria 5 | D27: 774247 | E27: 0 | F27: 774247 | G27: 1548494 | H27: 3355070.333
B28: 12 | C28: Director de División /Director de Supervisión /Director en Investigación /Profesional en Investigación | D28: 1085543 | E28: 0 | F28: 1085543 | G28: 2171086 | H28: 4704019.667
B29: 12 AI | C29: Director de División con prohibición | D29: =+D28 -> 1085543 | E29: =+F65*0.65 -> 254515.95 | F29: =+SUM(D29:E29) -> 1340058.95 | G29: =+F29*2 -> 2680117.9 | H29: =+G29*2.16666666666667 -> 5806922.117
B30: 13 | C30: Economista en Jefe | D30: 1305192 | E30: 0 | F30: =+SUM(D30:E30) -> 1305192 | G30: =+F30*2 -> 2610384 | H30: =+G30*2.16666666666667 -> 5655832
B31: =+'1CONCARGAS'!B33:J33 -> Escalas se mantienen sin ajustes con base en el artículo 4 del acta de la sesión 5714-2016, celebrada el 9 de marzo del 2016
B32: ESCALA SERVICIOS ESPECIALES
B33: Categoría | C33: Puesto | D33: Salario Único Semanal | E33: Costo de Vida Semanal | F33: Salario Contratación Semanal | G33: Salario Bisemanal | H33: Salario Mensual
B34: 5 | C34: Asesor Técnico | D34: =+D17 -> 173091 | E34: 0 | F34: =+SUM(D34:E34) -> 173091 | G34: =+F34*2 -> 346182 | H34: =+G34*2.16666666666667 -> 750061
B35: 6 | C35: Asesor 1 | D35: =+D18 -> 245109 | E35: 0 | F35: 245109 | G35: 490218 | H35: 1062139
B36: 7 | C36: Asesor 2 | D36: =+D19 -> 303933 | E36: 0 | F36: 303933 | G36: 607866 | H36: 1317043
B37: 8 | C37: Asesor 3 | D37: =+D21 -> 372494 | E37: 0 | F37: 372494 | G37: 744988 | H37: 1614140.667
B38: 9 | C38: Asesor 4 | D38: =+D23 -> 459618 | E38: 0 | F38: 459618 | G38: 919236 | H38: 1991678
B39: 12 | C39: Asesor en Investigación | D39: =+D29 -> 1085543 | E39: 0 | F39: 1085543 | G39: 2171086 | H39: 4704019.667
B41: ESCALA GERENCIAL DE BÁSICO MÁS PLUSES
B42: Categoría | C42: Puesto | D42: Salario Base Semanal | E42: Costo de Vida Semanal | F42: Salario Contratación Semanal | G42: Salario Bisemanal | H42: Salario Mensual
C43: Subauditor interno | D43: =+D44*1.15 -> 443727.5
B44: 1 | C44: Subauditor interno | D44: 385850 | E44: 0 | F44: =+D44+E44 -> 385850 | G44: =+F44*2 -> 771700 | H44: =+G44*2.16666666666667 -> 1672016.667
B45: 2 | C45: Auditor interno | D45: 488743 | E45: 0 | F45: =+D45+E45 -> 488743 | G45: =+F45*2 -> 977486 | H45: =+G45*2.16666666666667 -> 2117886.333
B46: 3 | C46: Subgerente - Intendente | D46: 618002 | E46: 0 | F46: =+D46+E46 -> 618002 | G46: =+F46*2 -> 1236004 | H46: =+G46*2.16666666666667 -> 2678008.667
B47: 4 | C47: Gerente - Superintendente | D47: 635414 | E47: 0 | F47: =+D47+E47 -> 635414 | G47: =+F47*2 -> 1270828 | H47: =+G47*2.16666666666667 -> 2753460.667
B48: =+B9 -> Montos congelados con base en el artículo 4 del acta de la sesión de la Junta Directiva del BCCR 5676-2015, celebrada el 21 de enero del 2015, mantienen dicha condición con base en el artículo 4 del acta de la sesión 5714-2016, celebrada el 9 de marzo del 2016.
B49: ESCALA REGULAR DE BÁSICO MÁS PLUSES
B50: Categoría | C50: Puesto | D50: Salario Base Semanal | E50: Costo de Vida Semanal | F50: Salario Contratación Semanal | G50: Salario Bisemanal | H50: Salario Mensual
B51: 4 | C51: Asistente Servicios Generales 1 | D51: 42475 | E51: 2998 | F51: =+D51+E51 -> 45473 | G51: =+F51*2 -> 90946 | H51: =+G51*2.16666666666667 -> 197049.6667
B52: 5 | C52: Asistente Servicios Generales 1 | D52: 45446 | E52: 2998 | F52: 48444 | G52: 96888 | H52: 209924
B53: 6 | C53: Asistente Servicios Generales 2 | D53: 48632 | E53: 2998 | F53: 51630 | G53: 103260 | H53: 223730
B54: 7 | C54: Asistente Servicios Generales 2 | D54: 52037 | E54: 2998 | F54: 55035 | G54: 110070 | H54: 238485
B55: 8 | C55: Asistente Servicios Institucionales 1 | D55: 55680 | E55: 2998 | F55: 58678 | G55: 117356 | H55: 254271.3333
B56: 9 | C56: Asistente Servicios Institucionales 2 | D56: 59575 | E56: 2998 | F56: 62573 | G56: 125146 | H56: 271149.6667
B57: 10 | C57: Técnico Servicios Institucionales 1 | D57: 63744 | E57: 2998 | F57: 66742 | G57: 133484 | H57: 289215.3333
B58: 12 | C58: Técnico Servicios Institucionales 2 | D58: 79077 | E58: 2998 | F58: 82075 | G58: 164150 | H58: 355658.3333
B59: 19 | C59: Profesional Gestión Bancaria (PGB) 1 / Profesional en Enfermerería | D59: 117194 | E59: 2998 | F59: 120192 | G59: 240384 | H59: 520832
B60: 21 | C60: Profesional Gestión Informática (PGI) 1 / PGB 2 / Supervisor 1 | D60: 134173 | E60: 2998 | F60: 137171 | G60: 274342 | H60: 594407.6667
B61: 22 | C61: Supervisor 2 /Supervisor TI /PGB 3 /PGI 2 | D61: 149430 | E61: 2998 | F61: 152428 | G61: 304856 | H61: 660521.3333
B62: 25 | C62: Ejecutivo de área /Supervisor Principal /PGB 4 /PGI 3 | D62: 186845 | E62: 2998 | F62: 189843 | G62: 379686 | H62: 822653
B63: 31 | C63: Director de Departamento /Líder de Supervisión /Director de Despacho /Analista Experto | D63: 267014 | E63: 2998 | F63: 270012 | G63: 540024 | H63: 1170052
B64: 32 | C64: Profesional Gestión Bancaria 5 | D64: 290637 | E64: 2998 | F64: =+D64+E64 -> 293635 | G64: =+F64*2 -> 587270 | H64: =+G64*2.16666666666667 -> 1272418.333
B65: 36 | C65: Director de División /Director de Supervisión /Director en Investigación /Profesional en Investigación | D65: 388565 | E65: 2998 | F65: 391563 | G65: 783126 | H65: 1696773
B66: 37 | C66: Economista en Jefe | D66: 456817 | E66: 2998 | F66: 459815 | G66: 919630 | H66: 1992531.667
B67: Rigen a partir del 1° de enero 2015, según acuerdos de Junta Directiva de la sesión 5675-2015, artículo 8 del 14 de enero del 2015.

Sheet 1CONCARGAS
B1: ESCALAS SALARIALES VIGENTES BANCO CENTRAL Y ENTES DESCONCENTRADOS AÑO 2016
B2: ESCALA GERENCIAL GLOBAL
D3: Montos semanales en colones | G3: Montos bisemanales en colones | J3: Montos mensuales promedio
B4: Categoría | C4: Puesto | D4: Salario Contratación Semanal | E4: Cargas Patronales | F4: Salario semanal con Cargas Patronales | G4: Salario Bisemanal | H4: Cargas Patronales | I4: Salario Bisemanal con Cargas Patronales | J4: Salario Mensual | K4: Cargas Patronales | L4: Salario Mensual con Cargas Patronales
B5: 1 | C5: Subauditor interno | D5: =+'1'!F4 -> 1216348 | E5: =+D5*0.3999333 -> 486458.0696 | F5: =+D5+E5 -> 1702806.07 | G5: =+D5*2 -> 2432696 | H5: =+G5*0.3999333 -> 972916.1392 | I5: =+G5+H5 -> 3405612.139 | J5: =+G5*2.16666666666667 -> 5270841.333 | K5: =+J5*0.3999333 -> 2107984.968 | L5: =+J5+K5 -> 7378826.302
B6: 2 | C6: Auditor interno | D6: =+'1'!F5 -> 1540708 | E6: =+D6*0.3999333 -> 616180.4348 | F6: =+D6+E6 -> 2156888.435 | G6: =+D6*2 -> 3081416 | H6: =+G6*0.3999333 -> 1232360.87 | I6: =+G6+H6 -> 4313776.87 | J6: =+G6*2.16666666666667 -> 6676401.333 | K6: =+J6*0.3999333 -> 2670115.217 | L6: =+J6+K6 -> 9346516.551
B7: 3 | C7: Subgerente - Intendente | D7: =+'1'!F6 -> 1621796 | E7: 648610.2262 | F7: 2270406.226 | G7: 3243592 | H7: 1297220.452 | I7: 4540812.452 | J7: 7027782.667 | K7: 2810644.314 | L7: 9838426.98
B8: 4 | C8: Gerente - Superintendente | D8: =+'1'!F7 -> 2201901 | E8: 880613.5332 | F8: 3082514.533 | G8: 4403802 | H8: 1761227.066 | I8: 6165029.066 | J8: 9541571 | K8: 3815991.977 | L8: 13357562.98
B9: 5 | C9: Presidente | D9: =+'1'!F8 -> 2329912.35 | E9: 931809.5348 | F9: 3261721.885 | G9: 4659824.7 | H9: 1863619.07 | I9: 6523443.77 | J9: 10096286.85 | K9: 4037841.318 | L9: 14134128.17
B10: Montos congelados con base en el artículo 4 del acta de la sesión de la Junta Directiva del BCCR 5676-2015, celebrada el 21 de enero del 2015, mantienen dicha condición con base en el artículo 4 del acta de la sesión 5714-2016, celebrada el 9 de marzo del 2016.
B12: ESCALA REGULAR GLOBAL
D13: Montos semanales en colones | G13: Montos bisemanales en colones | J13: Montos mensuales promedio
B14: Categoría | C14: Puesto | D14: Salario Contratación Semanal | E14: Cargas Patronales | F14: Salario semanal con Cargas Patronales | G14: Salario Bisemanal | H14: Cargas Patronales | I14: Salario Bisemanal con Cargas Patronales | J14: Salario Mensual | K14: Cargas Patronales | L14: Salario Mensual con Cargas Patronales
B15: 1 | C15: Asistente Servicios Generales 1 | D15: =+'1'!F13 -> 93647 | E15: =+D15*0.3999333 -> 37452.55375 | F15: =+E15+D15 -> 131099.5537 | G15: =+D15*2 -> 187294 | H15: =+G15*0.3999333 -> 74905.10749 | I15: =+H15+G15 -> 262199.1075 | J15: =+G15*2.16666666666667 -> 405803.6667 | K15: =+J15*0.3999333 -> 162294.3996 | L15: =+K15+J15 -> 568098.0662
B16: 2 | C16: Asistente Servicios Generales 2 /Asistente Servicios Institucionales 1 | D16: =+'1'!F14 -> 114734 | E16: =+D16*0.3999333 -> 45885.94724 | F16: =+E16+D16 -> 160619.9472 | G16: =+D16*2 -> 229468 | H16: =+G16*0.3999333 -> 91771.89448 | I16: =+H16+G16 -> 321239.8945 | J16: =+G16*2.16666666666667 -> 497180.6667 | K16: =+J16*0.3999333 -> 198839.1047 | L16: =+K16+J16 -> 696019.7714
B17: 3 | C17: Asistente Servicios Institucionales 2 | D17: =+'1'!F15 -> 123977 | E17: 49582.53073 | F17: 173559.5307 | G17: 247954 | H17: 99165.06147 | I17: 347119.0615 | J17: 537233.6667 | K17: 214857.6332 | L17: 752091.2998
B18: 4 | C18: Técnico Servicios Institucionales 1 | D18: =+'1'!F16 -> 161124 | E18: 64438.85303 | F18: 225562.853 | G18: 322248 | H18: 128877.7061 | I18: 451125.7061 | J18: 698204 | K18: 279235.0298 | L18: 977439.0298
B19: 5 | C19: Técnico Servicios Institucionales 2 | D19: =+'1'!F17 -> 173091 | E19: 69224.85483 | F19: 242315.8548 | G19: 346182 | H19: 138449.7097 | I19: 484631.7097 | J19: 750061 | K19: 299974.3709 | L19: 1050035.371
B20: 6 | C20: Profesional Gestión Bancaria (PGB) 1 / Profesional en Enfermería | D20: =+'1'!F18 -> 245109 | E20: 98027.25123 | F20: 343136.2512 | G20: 490218 | H20: 196054.5025 | I20: 686272.5025 | J20: 1062139 | K20: 424784.7553 | L20: 1486923.755
B21: 7 | C21: Profesional Gestión Informática (PGI) 1 / PGB 2 / Supervisor 1 | D21: =+'1'!F19 -> 303933 | E21: 121552.9277 | F21: 425485.9277 | G21: 607866 | H21: 243105.8553 | I21: 850971.8553 | J21: 1317043 | K21: 526729.3532 | L21: 1843772.353
B22: 07 AI | C22: Profesional Gestión Auditoría Interna 2 | D22: =+'1'!F20 -> 393094.15 | E22: 157211.4406 | F22: 550305.5906 | G22: 786188.3 | H22: 314422.8812 | I22: 1100611.181 | J22: 1703407.983 | K22: 681249.576 | L22: 2384657.559
B23: 8 | C23: Supervisor 2 /Supervisor TI /PGB 3 /PGI 2 | D23: =+'1'!F21 -> 372494 | E23: 148972.7547 | F23: 521466.7547 | G23: 744988 | H23: 297945.5093 | I23: 1042933.509 | J23: 1614140.667 | K23: 645548.6035 | L23: 2259689.27
B24: 08 AI | C24: Profesional Gestión Auditoría Interna 3 | D24: =+'1'!F22 -> 471572.2 | E24: 188597.4261 | F24: 660169.6261 | G24: 943144.4 | H24: 377194.8523 | I24: 1320339.252 | J24: 2043479.533 | K24: 817255.5132 | L24: 2860735.047
B25: 9 | C25: Ejecutivo de área /Supervisor Principal /PGB 4 /PGI 3 | D25: =+'1'!F23 -> 459618 | E25: 183816.5435 | F25: 643434.5435 | G25: 919236 | H25: 367633.087 | I25: 1286869.087 | J25: 1991678 | K25: 796538.3551 | L25: 2788216.355
B26: 09 AI | C26: Profesional Gestión Auditoría Interna 4 | D26: =+'1'!F24 -> 583015.95 | E26: 233167.4928 | F26: 816183.4428 | G26: 1166031.9 | H26: 466334.9857 | I26: 1632366.886 | J26: 2526402.45 | K26: 1010392.469 | L26: 3536794.919
B27: 10 | C27: Director de Departamento /Líder de Supervisión /Director de Despacho /Analista Experto | D27: =+'1'!F25 -> 771089 | E27: 308384.1684 | F27: 1079473.168 | G27: 1542178 | H27: 616768.3367 | I27: 2158946.337 | J27: 3341385.667 | K27: 1336331.396 | L27: 4677717.063
B28: 10 AI | C28: Director de Departamento con prohibición | D28: =+'1'!F26 -> 946596.8 | E28: 378575.582 | F28: 1325172.382 | G28: 1893193.6 | H28: 757151.164 | I28: 2650344.764 | J28: 4101919.467 | K28: 1640494.189 | L28: 5742413.655
B29: 11 | C29: Profesional Gestión Bancaria 5 | D29: =+'1'!F27 -> 774247 | E29: 309647.1577 | F29: 1083894.158 | G29: 1548494 | H29: 619294.3155 | I29: 2167788.315 | J29: 3355070.333 | K29: 1341804.35 | L29: 4696874.683
B30: 12 | C30: Director de División /Director de Supervisión /Director en Investigación /Profesional en Investigación | D30: =+'1'!F28 -> 1085543 | E30: 434144.7943 | F30: 1519687.794 | G30: 2171086 | H30: 868289.5886 | I30: 3039375.589 | J30: 4704019.667 | K30: 1881294.109 | L30: 6585313.775
B31: 12 AI | C31: Director de División con prohibición | D31: =+'1'!F29 -> 1340058.95 | E31: 535934.1981 | F31: 1875993.148 | G31: 2680117.9 | H31: 1071868.396 | I31: 3751986.296 | J31: 5806922.117 | K31: 2322381.525 | L31: 8129303.642
B32: 13 | C32: Economista en Jefe | D32: =+'1'!F30 -> 1305192 | E32: 521989.7437 | F32: 1827181.744 | G32: 2610384 | H32: 1043979.487 | I32: 3654363.487 | J32: 5655832 | K32: 2261955.556 | L32: 7917787.556
B33: Escalas se mantienen sin ajustes con base en el artículo 4 del acta de la sesión 5714-2016, celebrada el 9 de marzo del 2016
B34: ESCALA SERVICIOS ESPECIALES
D35: Montos semanales en colones | G35: Montos bisemanales en colones | J35: Montos mensuales promedio
B36: Categoría | C36: Puesto | D36: Salario Contratación Semanal | E36: Cargas Patronales | F36: Salario semanal con Cargas Patronales | G36: Salario Bisemanal | H36: Cargas Patronales | I36: Salario Bisemanal con Cargas Patronales | J36: Salario Mensual | K36: Cargas Patronales | L36: Salario Mensual con Cargas Patronales
B37: 5 | C37: Asesor Técnico | D37: =+D19 -> 173091 | E37: =+D37*0.3999333 -> 69224.85483 | F37: =+D37+E37 -> 242315.8548 | G37: =+D37*2 -> 346182 | H37: =+G37*0.3999333 -> 138449.7097 | I37: =+G37+H37 -> 484631.7097 | J37: =+G37*2.16666666666667 -> 750061 | K37: =+J37*0.3999333 -> 299974.3709 | L37: =+J37+K37 -> 1050035.371
B38: 6 | C38: Asesor 1 | D38: =+D20 -> 245109 | E38: =+D38*0.3999333 -> 98027.25123 | F38: =+D38+E38 -> 343136.2512 | G38: 490218 | H38: =+G38*0.3999333 -> 196054.5025 | I38: =+G38+H38 -> 686272.5025 | J38: 1062139 | K38: =+J38*0.3999333 -> 424784.7553 | L38: =+J38+K38 -> 1486923.755
B39: 7 | C39: Asesor 2 | D39: =+D21 -> 303933 | E39: 121552.9277 | F39: 425485.9277 | G39: 607866 | H39: 243105.8553 | I39: 850971.8553 | J39: 1317043 | K39: 526729.3532 | L39: 1843772.353
B40: 8 | C40: Asesor 3 | D40: =+D23 -> 372494 | E40: 148972.7547 | F40: 521466.7547 | G40: 744988 | H40: 297945.5093 | I40: 1042933.509 | J40: 1614140.667 | K40: 645548.6035 | L40: 2259689.27
B41: 9 | C41: Asesor 4 | D41: =+D25 -> 459618 | E41: 183816.5435 | F41: 643434.5435 | G41: 919236 | H41: 367633.087 | I41: 1286869.087 | J41: 1991678 | K41: 796538.3551 | L41: 2788216.355
B42: 12 | C42: Asesor en Investigación | D42: =+D30 -> 1085543 | E42: 434144.7943 | F42: 1519687.794 | G42: 2171086 | H42: 868289.5886 | I42: 3039375.589 | J42: 4704019.667 | K42: 1881294.109 | L42: 6585313.775
B44: ESCALA GERENCIAL DE BÁSICO MÁS PLUSES
D45: Montos semanales en colones | G45: Montos bisemanales en colones | J45: Montos mensuales promedio
B46: Categoría | C46: Puesto | D46: Salario Contratación Semanal | E46: Cargas Patronales | F46: Salario semanal con Cargas Patronales | G46: Salario Bisemanal | H46: Cargas Patronales | I46: Salario Bisemanal con Cargas Patronales | J46: Salario Mensual | K46: Cargas Patronales | L46: Salario Mensual con Cargas Patronales
C47: Subauditor interno
B48: 1 | C48: Subauditor interno | D48: =+'1'!F44 -> 385850 | E48: =+D48*0.3999333 -> 154314.2638 | F48: =+D48+E48 -> 540164.2638 | G48: =+D48*2 -> 771700 | H48: =+G48*0.3999333 -> 308628.5276 | I48: =+G48+H48 -> 1080328.528 | J48: =+G48*2.16666666666667 -> 1672016.667 | K48: =+J48*0.3999333 -> 668695.1432 | L48: =+J48+K48 -> 2340711.81
B49: 2 | C49: Auditor interno | D49: =+'1'!F45 -> 488743 | E49: 195464.6008 | F49: 684207.6008 | G49: =+D49*2 -> 977486 | H49: 390929.2017 | I49: 1368415.202 | J49: =+G49*2.16666666666667 -> 2117886.333 | K49: 847013.2703 | L49: 2964899.604
B50: 3 | C50: Subgerente - Intendente | D50: =+'1'!F46 -> 618002 | E50: 247159.5793 | F50: 865161.5793 | G50: 1236004 | H50: 494319.1585 | I50: 1730323.159 | J50: 2678008.667 | K50: 1071024.843 | L50: 3749033.51
B51: 4 | C51: Gerente - Superintendente | D51: =+'1'!F47 -> 635414 | E51: 254123.2179 | F51: 889537.2179 | G51: 1270828 | H51: 508246.4358 | I51: 1779074.436 | J51: 2753460.667 | K51: 1101200.611 | L51: 3854661.278
B52: =+B10 -> Montos congelados con base en el artículo 4 del acta de la sesión de la Junta Directiva del BCCR 5676-2015, celebrada el 21 de enero del 2015, mantienen dicha condición con base en el artículo 4 del acta de la sesión 5714-2016, celebrada el 9 de marzo del 2016.
B53: ESCALA REGULAR DE BÁSICO MÁS PLUSES
D54: Montos semanales en colones | G54: Montos bisemanales en colones | J54: Montos mensuales promedio
B55: Categoría | C55: Puesto | D55: Salario Contratación Semanal | E55: Cargas Patronales | F55: Salario semanal con Cargas Patronales | G55: Salario Bisemanal | H55: Cargas Patronales | I55: Salario Bisemanal con Cargas Patronales | J55: Salario Mensual | K55: Cargas Patronales | L55: Salario Mensual con Cargas Patronales
B56: 4 | C56: Asistente Servicios Generales 1 | D56: =+'1'!F51 -> 45473 | E56: =+D56*0.3999333 -> 18186.16695 | F56: =+D56+E56 -> 63659.16695 | G56: =+D56*2 -> 90946 | H56: =+G56*0.3999333 -> 36372.3339 | I56: =+G56+H56 -> 127318.3339 | J56: =+G56*2.16666666666667 -> 197049.6667 | K56: =+J56*0.3999333 -> 78806.72345 | L56: =+J56+K56 -> 275856.3901
B57: 5 | C57: Asistente Servicios Generales 1 | D57: =+'1'!F52 -> 48444 | E57: 19374.36879 | F57: 67818.36879 | G57: 96888 | H57: 38748.73757 | I57: 135636.7376 | J57: 209924 | K57: 83955.59807 | L57: 293879.5981
B58: 6 | C58: Asistente Servicios Generales 2 | D58: =+'1'!F53 -> 51630 | E58: 20648.55628 | F58: 72278.55628 | G58: 103260 | H58: 41297.11256 | I58: 144557.1126 | J58: 223730 | K58: 89477.07721 | L58: 313207.0772
B59: 7 | C59: Asistente Servicios Generales 2 | D59: =+'1'!F54 -> 55035 | E59: 22010.32917 | F59: 77045.32917 | G59: 110070 | H59: 44020.65833 | I59: 154090.6583 | J59: 238485 | K59: 95378.09305 | L59: 333863.0931
B60: 8 | C60: Asistente Servicios Institucionales 1 | D60: =+'1'!F55 -> 58678 | E60: 23467.28618 | F60: 82145.28618 | G60: 117356 | H60: 46934.57235 | I60: 164290.5724 | J60: 254271.3333 | K60: 101691.5734 | L60: 355962.9068
B61: 9 | C61: Asistente Servicios Institucionales 2 | D61: =+'1'!F56 -> 62573 | E61: 25025.02638 | F61: 87598.02638 | G61: 125146 | H61: 50050.05276 | I61: 175196.0528 | J61: 271149.6667 | K61: 108441.781 | L61: 379591.4477
B62: 10 | C62: Técnico Servicios Institucionales 1 | D62: =+'1'!F57 -> 66742 | E62: 26692.34831 | F62: 93434.34831 | G62: 133484 | H62: 53384.69662 | I62: 186868.6966 | J62: 289215.3333 | K62: 115666.8427 | L62: 404882.176
B63: 12 | C63: Técnico Servicios Institucionales 2 | D63: =+'1'!F58 -> 82075 | E63: 32824.5256 | F63: =+D63+E63 -> 114899.5256 | G63: 164150 | H63: 65649.05119 | I63: 229799.0512 | J63: 355658.3333 | K63: 142239.6109 | L63: 497897.9443
B64: 19 | C64: Profesional Gestión Bancaria (PGB) 1 / Profesional en Enfermerería | D64: =+'1'!F59 -> 120192 | E64: 48068.78319 | F64: 168260.7832 | G64: 240384 | H64: 96137.56639 | I64: 336521.5664 | J64: 520832 | K64: 208298.0605 | L64: 729130.0605
B65: 21 | C65: Profesional Gestión Informática (PGI) 1 / PGB 2 / Supervisor 1 | D65: =+'1'!F60 -> 137171 | E65: 54859.25069 | F65: 192030.2507 | G65: 274342 | H65: 109718.5014 | I65: 384060.5014 | J65: 594407.6667 | K65: 237723.4197 | L65: 832131.0863
B66: 22 | C66: Supervisor 2 /Supervisor TI /PGB 3 /PGI 2 | D66: =+'1'!F61 -> 152428 | E66: 60961.03305 | F66: 213389.0331 | G66: 304856 | H66: 121922.0661 | I66: 426778.0661 | J66: 660521.3333 | K66: 264164.4766 | L66: 924685.8099
B67: 25 | C67: Ejecutivo de área /Supervisor Principal /PGB 4 /PGI 3 | D67: =+'1'!F62 -> 189843 | E67: 75924.53747 | F67: 265767.5375 | G67: 379686 | H67: 151849.0749 | I67: 531535.0749 | J67: 822653 | K67: 329006.329 | L67: 1151659.329
B68: 31 | C68: Director de Departamento /Líder de Supervisión /Director de Despacho /Analista Experto | D68: =+'1'!F63 -> 270012 | E68: 107986.7902 | F68: 377998.7902 | G68: 540024 | H68: 215973.5804 | I68: 755997.5804 | J68: 1170052 | K68: 467942.7575 | L68: 1637994.758
B69: 32 | C69: Profesional Gestión Bancaria 5 | D69: =+'1'!F64 -> 293635 | E69: 117434.4145 | F69: 411069.4145 | G69: 587270 | H69: 234868.8291 | I69: 822138.8291 | J69: 1272418.333 | K69: 508882.463 | L69: 1781300.796
B70: 36 | C70: Director de División /Director de Supervisión /Director en Investigación /Profesional en Investigación | D70: =+'1'!F65 -> 391563 | E70: 156599.0827 | F70: 548162.0827 | G70: 783126 | H70: 313198.1655 | I70: 1096324.165 | J70: 1696773 | K70: 678596.0252 | L70: 2375369.025
B71: 37 | C71: Economista en Jefe | D71: =+'1'!F66 -> 459815 | E71: 183895.3303 | F71: 643710.3303 | G71: 919630 | H71: 367790.6607 | I71: 1287420.661 | J71: 1992531.667 | K71: 796879.7648 | L71: 2789411.431
B72: =+B33 -> Escalas se mantienen sin ajustes con base en el artículo 4 del acta de la sesión 5714-2016, celebrada el 9 de marzo del 2016

Sheet EG
H1: >
C4: ESCALA GERENCIAL (Montos semanales)
C5: Puesto | D5: Categoría | E5: Salario Único (Escala Global) | F5: Salario base (Escala de Básico Más Pluses)
C6: Presidente | D6: 5 | E6: =+'1'!D8 -> 1696950
C7: Gerente - Superintendente | D7: 4 | E7: =+'1'!D7 -> 1603715 | F7: =+'1'!D47 -> 635414
C8: Subgerente - Intendente | D8: 3 | E8: =+'1'!D6 -> 1181206 | F8: =+'1'!D46 -> 618002
C9: Auditor interno | D9: 2 | E9: =+'1'!D5 -> 1122147 | F9: =+'1'!D45 -> 488743
C10: Subauditor interno | D10: 1 | E10: =+'1'!D4 -> 885905 | F10: =+'1'!D44 -> 385850
B12: =+'1'!B9:H9 -> Montos congelados con base en el artículo 4 del acta de la sesión de la Junta Directiva del BCCR 5676-2015, celebrada el 21 de enero del 2015, mantienen dicha condición con base en el artículo 4 del acta de la sesión 5714-2016, celebrada el 9 de marzo del 2016.

Sheet Equivalencias
B1: =+RIGHT('1'!B1,8) -> AÑO 2016
B2: TABLA DE EQUIVALENCIAS ESCALA REGULAR
B4: Puesto | C4: Categorías Escala Global | D4: Categorías Básico Más Pluses
B5: Economista en Jefe | C5: 13 | D5: 37
B6: Director de División Director de Supervisión Director en Investigación Profesional en Investigación | C6: 12 | D6: 36
B7: Profesional Gestión Bancaria 5 | C7: 11 | D7: 32
B8: Director de Departamento, Líder de Supervisión, Director de Despacho, Analista Experto Asesor 5 (Servicios Especiales) | C8: 10 | D8: 31
B9: Ejecutivo de Área Supervisor Principal Profesional Gestión Bancaria 4 Profesional Gestión Auditoría Interna 4 Profesional Gestión Informática 3 Asesor 4 (Servicios Especiales) | C9: 9 | D9: 25
B10: Profesional Gestión Bancaria 3 Profesional Gestión Auditoría Interna 3 Profesional Gestión Informática 2 Supervisor 2 Supervisor TI Asesor 3 (Servicios Especiales) | C10: 8 | D10: 22
B11: Profesional Gestión Bancaria 2 Profesional Gestión Informática 1 Supervisor 1 Asesor 2 (Servicios Especiales) | C11: 7 | D11: 21
B12: Profesional Gestión Bancaria 1 Asesor 1 (Servicios Especiales) | C12: 6 | D12: 19
B13: Técnico Servicios Institucionales 2 | C13: 5 | D13: 12
B14: Técnico Servicios Institucionales 1 | C14: 4 | D14: 10
B15: Asistente Servicios Institucionales 2 | C15: 3 | D15: 9
B16: Asistente Servicios Institucionales 1 | C16: 2 | D16: 8
B17: Asistente Servicios Generales 2 | C17: 2 | D17: 6 – 7
B18: Asistente Servicios Generales 1 | C18: 1 | D18: 4 – 5
B21: TABLA DE EQUIVALENCIAS ESCALA GERENCIAL
B22: Puesto | C22: Categorías Escala Global | D22: Categorías Básico Más Pluses
B23: Presidente | C23: 5 | D23: --
B24: Gerente - Superintendente | C24: 4 | D24: 4
B25: Subgerente - Intendente | C25: 3 | D25: 3 *
B26: Auditor interno | C26: 2 | D26: 2
B27: Subauditor Interno | C27: 1 * | D27: 1
B28: * No hay funcionarios ubicados en dichas categorías

Sheet Escala con puestos
B1: ='1'!B1 & " (Montos Semanales)" -> ESCALAS SALARIALES VIGENTES BANCO CENTRAL Y ENTES DESCONCENTRADOS AÑO 2016 (Montos Semanales)
B2: CLASE DE PUESTO | D2: ESCALA REGULAR GLOBAL | G2: ESCALA REGULAR DE BÁSICO MÁS PLUSES
D3: CAT | E3: SALARIO ÚNICO | G3: CAT | H3: SALARIO BASE | I3: COSTO DE VIDA | J3: TOTAL
B4: Economista en Jefe | D4: 13 | E4: =+'1'!D30 -> 1305192 | G4: 37 | H4: =+'1'!D66 -> 456817 | I4: =+'1'!$E$66 -> 2998 | J4: =+H4+I4 -> 459815
B5: Director de División - Director de Supervisión - Director en Investigación - PI | D5: 12 | E5: =+'1'!D28 -> 1085543 | G5: 36 | H5: =+'1'!D65 -> 388565 | I5: =+'1'!$E$66 -> 2998 | J5: =+H5+I5 -> 391563
B6: Profesional en Gestión Bancaria 5 | D6: 11 | E6: =+'1'!D27 -> 774247 | G6: 32 | H6: =+'1'!D64 -> 290637 | I6: =+'1'!$E$66 -> 2998 | J6: =+H6+I6 -> 293635
B7: Director de Departamento - Líder de Supervisión - Director Despacho - Analista Experto - Asesor 5 | D7: 10 | E7: =+'1'!D25 -> 771089 | G7: 31 | H7: =+'1'!D63 -> 267014 | I7: =+'1'!$E$66 -> 2998 | J7: 270012
B8: Ejecutivo de Área - Supervisor Principal | D8: 9 | E8: =+E9 -> 459618 | G8: 25 | H8: =+'1'!D62 -> 186845 | I8: =+'1'!$E$66 -> 2998 | J8: 189843
B9: P.G.B. 4 - P.G.A.I. 4 - P.G.I. 3 - Asesor 4 | D9: 9 | E9: =+'1'!D23 -> 459618 | G9: 25 | H9: =+H8 -> 186845 | I9: =+'1'!$E$66 -> 2998 | J9: 189843
B10: P.G.B. 3 - P.G.A.I. 3 - P.G.I. 2 - Supervisor 2 - Supervisor TI - Asesor 3 | D10: 8 | E10: =+'1'!D21 -> 372494 | G10: 22 | H10: =+'1'!D61 -> 149430 | I10: =+'1'!$E$66 -> 2998 | J10: 152428
B11: P.G.B. 2 - P.G.I.1 - Supervisor 1 - Asesor 2 | D11: 7 | E11: =+'1'!D19 -> 303933 | G11: 21 | H11: =+'1'!D60 -> 134173 | I11: =+'1'!$E$66 -> 2998 | J11: 137171
B12: P.G.B. 1 - Asesor 1 | D12: 6 | E12: =+'1'!D18 -> 245109 | G12: 19 | H12: =+'1'!D59 -> 117194 | I12: =+'1'!$E$66 -> 2998 | J12: 120192
B13: Técnico Servicios Institucionales 2 | D13: 5 | E13: =+'1'!D17 -> 173091 | G13: 12 | H13: =+'1'!D58 -> 79077 | I13: =+'1'!$E$66 -> 2998 | J13: 82075
B14: Técnico Servicios Institucionales 1 | D14: 4 | E14: =+'1'!D16 -> 161124 | G14: 10 | H14: =+'1'!D57 -> 63744 | I14: =+'1'!$E$66 -> 2998 | J14: 66742
B15: Asistente Servicios Institucionales 2 | D15: 3 | E15: =+'1'!D15 -> 123977 | G15: 9 | H15: =+'1'!D56 -> 59575 | I15: =+'1'!$E$66 -> 2998 | J15: 62573
B16: Asistente Servicios Institucionales 1 | D16: 2 | E16: =+E17 -> 114734 | G16: 8 | H16: =+'1'!D55 -> 55680 | I16: =+'1'!$E$66 -> 2998 | J16: 58678
B17: Asistente Servicios Generales 2 | D17: 2 | E17: =+'1'!D14 -> 114734 | G17: 7 | H17: =+'1'!D54 -> 52037 | I17: =+'1'!$E$66 -> 2998 | J17: 55035
G18: 6 | H18: =+'1'!D53 -> 48632 | I18: =+'1'!$E$66 -> 2998 | J18: 51630
B19: Asistente Servicios Generales 1 | D19: 1 | E19: =+'1'!D13 -> 93647 | G19: 5 | H19: =+'1'!D52 -> 45446 | I19: =+'1'!$E$66 -> 2998 | J19: 48444
G20: 4 | H20: =+'1'!D51 -> 42475 | I20: =+'1'!$E$66 -> 2998 | J20: 45473
B21: =+'1CONCARGAS'!B33:J33 -> Escalas se mantienen sin ajustes con base en el artículo 4 del acta de la sesión 5714-2016, celebrada el 9 de marzo del 2016

Sheet Escala con puestos (2) (hidden)
B1: ='1'!B1 & " (Montos Semanales)" -> ESCALAS SALARIALES VIGENTES BANCO CENTRAL Y ENTES DESCONCENTRADOS AÑO 2016 (Montos Semanales)
B2: CLASE DE PUESTO | D2: ESCALA REGULAR GLOBAL | G2: ESCALA REGULAR DE BÁSICO MÁS PLUSES
D3: CAT | E3: SALARIO ÚNICO | G3: CAT | H3: SALARIO BASE | I3: COSTO DE VIDA | J3: TOTAL
B4: Economista en Jefe | D4: 13 | E4: =+'1'!D30 -> 1305192 | G4: 37 | H4: =+'1'!D66 -> 456817 | I4: =+'1'!$E$66 -> 2998 | J4: =+H4+I4 -> 459815
B5: Director de División - Director de Supervisión - Director en Investigación - PI | D5: 12 | E5: =+'1'!D28 -> 1085543 | G5: 36 | H5: =+'1'!D65 -> 388565 | I5: =+'1'!$E$66 -> 2998 | J5: =+H5+I5 -> 391563
B6: Director de División (con prohibición) | D6: 12
B7: Profesional en Gestión Bancaria 5 | D7: 11 | E7: =+'1'!D27 -> 774247 | G7: 32 | H7: =+'1'!D64 -> 290637 | I7: =+'1'!$E$66 -> 2998 | J7: =+H7+I7 -> 293635
B8: Director de Departamento - Líder de Supervisión - Director Despacho - Analista Experto - Asesor 5 | D8: 10 | E8: =+'1'!D25 -> 771089 | G8: 31 | H8: =+'1'!D63 -> 267014 | I8: =+'1'!$E$66 -> 2998 | J8: 270012
B9: Director de Departamento (con prohibición) | D9: 10
B10: Ejecutivo de Área - Supervisor Principal, P.G.B. 4 - P.G.I. 3 - Asesor 4 | D10: 9 | E10: =+'1'!D23 -> 459618 | G10: 25 | H10: =+'1'!D62 -> 186845 | I10: =+'1'!$E$66 -> 2998 | J10: 189843
B11: P.G.A.I. 4 (con prohibición) | D11: 9 | E11: =+'1'!D23 -> 459618
B12: P.G.B. 3 - P.G.A.I. 3 - P.G.I. 2 - Supervisor 2 - Supervisor TI - Asesor 3 | D12: 8 | E12: =+'1'!D21 -> 372494 | G12: 22 | H12: =+'1'!D61 -> 149430 | I12: =+'1'!$E$66 -> 2998 | J12: 152428
B13: P.G.B. 3 (con prohibición) | D13: 8 | G13: 22
B14: Médico (1/2 tiempo) | D14: 8 | G14: 22
B15: P.G.B. 2 - P.G.I.1 - Supervisor 1 - Asesor 2 | D15: 7 | E15: =+'1'!D19 -> 303933 | G15: 21 | H15: =+'1'!D60 -> 134173 | I15: =+'1'!$E$66 -> 2998 | J15: 137171
B16: P.G.B. 1 - Asesor 1 | D16: 6 | E16: =+'1'!D18 -> 245109 | G16: 19 | H16: =+'1'!D59 -> 117194 | I16: =+'1'!$E$66 -> 2998 | J16: 120192
B17: Enfermera profesional (Medio tiempo) | D17: 6
B18: Técnico Servicios Institucionales 2 | D18: 5 | E18: =+'1'!D17 -> 173091 | G18: 12 | H18: =+'1'!D58 -> 79077 | I18: =+'1'!$E$66 -> 2998 | J18: 82075
B19: Técnico Servicios Institucionales 1 | D19: 4 | E19: =+'1'!D16 -> 161124 | G19: 10 | H19: =+'1'!D57 -> 63744 | I19: =+'1'!$E$66 -> 2998 | J19: 66742
B20: Asistente Servicios Institucionales 2 | D20: 3 | E20: =+'1'!D15 -> 123977 | G20: 9 | H20: =+'1'!D56 -> 59575 | I20: =+'1'!$E$66 -> 2998 | J20: 62573
B21: Asistente Servicios Institucionales 1 | D21: 2 | E21: =+E22 -> 114734 | G21: 8 | H21: =+'1'!D55 -> 55680 | I21: =+'1'!$E$66 -> 2998 | J21: 58678
B22: Asistente Servicios Generales 2 | D22: 2 | E22: =+'1'!D14 -> 114734 | G22: 7 | H22: =+'1'!D54 -> 52037 | I22: =+'1'!$E$66 -> 2998 | J22: 55035
G23: 6 | H23: =+'1'!D53 -> 48632 | I23: =+'1'!$E$66 -> 2998 | J23: 51630
B24: Asistente Servicios Generales 1 | D24: 1 | E24: =+'1'!D13 -> 93647 | G24: 5 | H24: =+'1'!D52 -> 45446 | I24: =+'1'!$E$66 -> 2998 | J24: 48444
G25: 4 | H25: =+'1'!D51 -> 42475 | I25: =+'1'!$E$66 -> 2998 | J25: 45473
B26: =+'1'!B67:G67 -> Rigen a partir del 1° de enero 2015, según acuerdos de Junta Directiva de la sesión 5675-2015, artículo 8 del 14 de enero del 2015.

Sheet 2 (hidden)
A1: CAT | B1: Global | C1: Prohibición | D1: Mer+Proh | E1: PUESTO
A2: 1 | B2: =+#REF! ->  | C2: =+#REF! ->  | D2: =+B2+C2 ->  | E2: Subauditores internos
A3: 2 | B3: =+#REF! ->  | C3: =+#REF! ->  | E3: Auditor Interno
A4: 3 | B4: =+#REF! ->  | C4: =+#REF! -> 
A5: 4 | B5: =+#REF! ->  | C5: =+#REF! -> 
A6: 5 | B6: =+#REF! ->  | C6: =+#REF! -> 
A7: 01 | B7: =+#REF! ->  | C7: 0
A8: 02 | B8: =+#REF! ->  | C8: 0
A9: 03 | B9: =+#REF! ->  | C9: 0
A10: 04 | B10: =+#REF! ->  | C10: 0
A11: 05 | B11: =+#REF! ->  | C11: 0
A12: 06 | B12: =+#REF! ->  | C12: 0
A13: 07 | B13: =+#REF! ->  | C13: 0
A14: 08 | B14: =+#REF! ->  | C14: =+#REF! ->  | D14: =+B14+C14 -> 
A15: 09 | B15: =+#REF! ->  | C15: =+#REF! ->  | D15: =+B15+C15 -> 
A16: 10 | B16: =+#REF! ->  | C16: =+#REF! ->  | D16: =+B16+C16 -> 
A17: 11 | B17: =+#REF! ->  | C17: 0 | D17: =+B17+C17 -> 
A18: 12 | B18: =+#REF! ->  | C18: =+#REF!*0.65 ->  | D18: =+B18+C18 -> 
